[Event "Titled Tuesday Blitz February 22 Early 2022"]
[White "Dahanayake, Isara Banidu"]
[Black "Pasti, Aron"]
[WhiteFideId "9932631"]
[BlackFideId "785857"]
[WhiteElo "1394"]
[BlackElo "2080"]
[Result "0-1"]
[Round "09"]
[TimeControl "180+1"]
[Date "2022.02.22"]
[WhiteClock "0:00:31"]
[BlackClock "0:00:04"]

1. d4 {[%clk 0:03:00]}  d5 {[%clk 0:02:58]} 2. Nf3 {[%clk 0:02:59]}  Nf6 {[%clk 0:02:57]} 3. Bg5 {[%clk 0:02:58]}  Bf5 {[%clk 0:02:56]} 4. e3 {[%clk 0:02:58]}  e6 {[%clk 0:02:52]} 5. Bd3 {[%clk 0:02:58]}  Bxd3 {[%clk 0:02:34]} 6. Qxd3 {[%clk 0:02:59]}  Be7 {[%clk 0:02:33]} 7. O-O {[%clk 0:02:58]}  Nbd7 {[%clk 0:02:25]} 8. Nbd2 {[%clk 0:02:59]}  h6 {[%clk 0:02:17]} 9. Bf4 {[%clk 0:02:52]}  O-O {[%clk 0:02:12]} 10. e4 {[%clk 0:02:42]}  dxe4 {[%clk 0:01:59]} 11. Nxe4 {[%clk 0:02:41]}  Nxe4 {[%clk 0:01:52]} 12. Qxe4 {[%clk 0:02:41]}  Nf6 {[%clk 0:01:52]} 13. Qxb7 {[%clk 0:02:29]}  Rb8 {[%clk 0:01:49]} 14. Qxc7 {[%clk 0:02:28]}  Rxb2 {[%clk 0:01:42]} 15. Qc3 {[%clk 0:02:25]}  Qb6 {[%clk 0:01:24]} 16. Qd3 {[%clk 0:02:13]}  Nd5 {[%clk 0:01:12]} 17. Bd2 {[%clk 0:02:10]}  Rc8 {[%clk 0:00:56]} 18. c4 {[%clk 0:02:09]}  Nb4 {[%clk 0:00:52]} 19. Bxb4 {[%clk 0:02:08]}  Qxb4 {[%clk 0:00:51]} 20. Ne5 {[%clk 0:01:56]}  Bf6 {[%clk 0:00:33]} 21. Rfc1 {[%clk 0:01:38]}  Bxe5 {[%clk 0:00:24]} 22. dxe5 {[%clk 0:01:39]}  Rd2 {[%clk 0:00:22]} 23. Qb3 {[%clk 0:01:33]}  Qc5 {[%clk 0:00:18]} 24. Qg3 {[%clk 0:01:18]}  Rcd8 {[%clk 0:00:15]} 25. Rab1 {[%clk 0:01:15]}  Rxa2 {[%clk 0:00:12]} 26. Rd1 {[%clk 0:01:12]}  Rxd1+ {[%clk 0:00:10]} 27. Rxd1 {[%clk 0:01:12]}  Qxc4 {[%clk 0:00:08]} 28. h4 {[%clk 0:01:04]}  Qe2 {[%clk 0:00:07]} 29. Rd8+ {[%clk 0:01:02]}  Kh7 {[%clk 0:00:07]} 30. Rd7 {[%clk 0:00:48]}  Qe1+ {[%clk 0:00:06]} 31. Kh2 {[%clk 0:00:48]}  Qxf2 {[%clk 0:00:06]} 32. Qd3+ {[%clk 0:00:45]}  Qf5 {[%clk 0:00:05]} 33. Qxf5+ {[%clk 0:00:43]}  exf5 {[%clk 0:00:06]} 34. Rxf7 {[%clk 0:00:44]}  Kg6 {[%clk 0:00:06]} 35. e6 {[%clk 0:00:43]}  Re2 {[%clk 0:00:05]} 36. h5+ {[%clk 0:00:38]}  Kxh5 {[%clk 0:00:04]} 37. e7 {[%clk 0:00:33]}  Kg6 {[%clk 0:00:03]} 38. e8=Q {[%clk 0:00:30]}  Rxe8 {[%clk 0:00:03]} 39. Rxa7 {[%clk 0:00:31]}  f4 {[%clk 0:00:03]} 40. Ra6+ {[%clk 0:00:30]}  Kh5 {[%clk 0:00:03]} 41. Kh3 {[%clk 0:00:31]}  g5 {[%clk 0:00:03]} 42. Ra5 {[%clk 0:00:29]}  Re3+ {[%clk 0:00:04]} 43. Kh2 {[%clk 0:00:30]}  Re2 {[%clk 0:00:04]} 44. Rd5 {[%clk 0:00:30]}  f3 {[%clk 0:00:04]} 45. Rd3 {[%clk 0:00:30]}  Rxg2+ {[%clk 0:00:04]} 46. Kh1 {[%clk 0:00:30]}  g4 {[%clk 0:00:04]} 47. Rd5+ {[%clk 0:00:30]}  Kh4 {[%clk 0:00:05]} 48. Rd6 {[%clk 0:00:30]}  Ra2 {[%clk 0:00:04]} 49. Rxh6+ {[%clk 0:00:31]}  Kg3 {[%clk 0:00:04]} 0-1


[Site "https://www.chess.com"]

[Event "Titled Tuesday Blitz February 22 Early 2022"]
[White "De Souza, Cristiano Gomes"]
[Black "Dilmukhametov, Artur"]
[WhiteFideId "2151758"]
[BlackFideId "24179922"]
[WhiteElo "2068"]
[BlackElo "2266"]
[Result "0-1"]
[Round "09"]
[TimeControl "180+1"]
[Date "2022.02.22"]
[WhiteClock "0:00:43"]
[BlackClock "0:01:22"]

1. d4 {[%clk 0:03:00]}  e5 {[%clk 0:03:00]} 2. dxe5 {[%clk 0:02:59]}  Nc6 {[%clk 0:03:00]} 3. Nf3 {[%clk 0:02:58]}  Qe7 {[%clk 0:03:00]} 4. Bf4 {[%clk 0:02:57]}  Qb4+ {[%clk 0:02:58]} 5. Bd2 {[%clk 0:02:57]}  Qxb2 {[%clk 0:02:59]} 6. Nc3 {[%clk 0:02:57]}  Bb4 {[%clk 0:02:58]} 7. Rb1 {[%clk 0:02:56]}  Qxc3 {[%clk 0:02:58]} 8. Bxc3 {[%clk 0:02:54]}  Bxc3+ {[%clk 0:02:59]} 9. Nd2 {[%clk 0:02:54]}  Nxe5 {[%clk 0:03:00]} 10. e3 {[%clk 0:02:52]}  Nf6 {[%clk 0:02:59]} 11. Be2 {[%clk 0:02:52]}  Ne4 {[%clk 0:02:59]} 12. O-O {[%clk 0:02:33]}  Nxd2 {[%clk 0:02:56]} 13. f4 {[%clk 0:02:30]}  Nxf1 {[%clk 0:02:52]} 14. fxe5 {[%clk 0:02:24]}  Nxe3 {[%clk 0:02:46]} 15. Qd3 {[%clk 0:02:23]}  Bxe5 {[%clk 0:02:39]} 16. Qxe3 {[%clk 0:02:22]}  d6 {[%clk 0:02:39]} 17. Bf3 {[%clk 0:02:19]}  c6 {[%clk 0:02:36]} 18. Rd1 {[%clk 0:02:17]}  O-O {[%clk 0:02:35]} 19. Qd3 {[%clk 0:02:10]}  Be6 {[%clk 0:02:31]} 20. c4 {[%clk 0:02:08]}  c5 {[%clk 0:02:29]} 21. Bxb7 {[%clk 0:01:59]}  Rab8 {[%clk 0:02:29]} 22. Rb1 {[%clk 0:01:53]}  g6 {[%clk 0:02:22]} 23. Be4 {[%clk 0:01:52]}  Kg7 {[%clk 0:02:12]} 24. g3 {[%clk 0:01:50]}  a5 {[%clk 0:02:06]} 25. a4 {[%clk 0:01:47]}  Rb4 {[%clk 0:02:05]} 26. Rxb4 {[%clk 0:01:43]}  axb4 {[%clk 0:02:03]} 27. Qb3 {[%clk 0:01:41]}  Rd8 {[%clk 0:01:49]} 28. a5 {[%clk 0:01:39]}  Rd7 {[%clk 0:01:49]} 29. a6 {[%clk 0:01:38]}  Ra7 {[%clk 0:01:45]} 30. Bb7 {[%clk 0:01:37]}  Bc3 {[%clk 0:01:39]} 31. Kg2 {[%clk 0:01:36]}  Bf5 {[%clk 0:01:35]} 32. Qa4 {[%clk 0:01:35]}  Rxb7 {[%clk 0:01:34]} 33. axb7 {[%clk 0:01:33]}  Be4+ {[%clk 0:01:34]} 34. Kf2 {[%clk 0:01:33]}  Bxb7 {[%clk 0:01:35]} 35. Qd7 {[%clk 0:01:26]}  Ba6 {[%clk 0:01:35]} 36. Qxd6 {[%clk 0:01:25]}  Bd4+ {[%clk 0:01:32]} 37. Ke1 {[%clk 0:01:21]}  Bxc4 {[%clk 0:01:31]} 38. h4 {[%clk 0:01:13]}  h5 {[%clk 0:01:28]} 39. Qf4 {[%clk 0:01:11]}  b3 {[%clk 0:01:25]} 40. Kd2 {[%clk 0:01:09]}  b2 {[%clk 0:01:23]} 41. Kc2 {[%clk 0:00:45]}  Bd3+ {[%clk 0:01:22]} 42. Kxd3 {[%clk 0:00:43]}  b1=Q+ {[%clk 0:01:22]} 0-1


[Site "https://www.chess.com"]

[Event "Titled Tuesday Blitz February 22 Early 2022"]
[White "Devaev, Alexander"]
[Black "Tologon tegin, Semetei"]
[WhiteFideId "4169395"]
[BlackFideId "13800574"]
[WhiteElo "2185"]
[BlackElo "2258"]
[Result "0-1"]
[Round "09"]
[TimeControl "180+1"]
[Date "2022.02.22"]
[WhiteClock "0:00:10"]
[BlackClock "0:00:03"]

1. Nf3 {[%clk 0:02:57]}  d5 {[%clk 0:02:59]} 2. d4 {[%clk 0:02:56]}  Nf6 {[%clk 0:02:58]} 3. c4 {[%clk 0:02:57]}  e6 {[%clk 0:02:59]} 4. Nc3 {[%clk 0:02:57]}  Be7 {[%clk 0:02:58]} 5. cxd5 {[%clk 0:02:57]}  exd5 {[%clk 0:02:58]} 6. Bg5 {[%clk 0:02:58]}  Nbd7 {[%clk 0:02:56]} 7. e3 {[%clk 0:02:58]}  Nf8 {[%clk 0:02:57]} 8. Bd3 {[%clk 0:02:58]}  Ne6 {[%clk 0:02:48]} 9. Bh4 {[%clk 0:02:57]}  g6 {[%clk 0:02:49]} 10. O-O {[%clk 0:02:56]}  Ng7 {[%clk 0:02:49]} 11. Bxf6 {[%clk 0:02:52]}  Bxf6 {[%clk 0:02:48]} 12. b4 {[%clk 0:02:52]}  Bf5 {[%clk 0:02:40]} 13. b5 {[%clk 0:02:47]}  O-O {[%clk 0:02:39]} 14. Rc1 {[%clk 0:02:46]}  Rc8 {[%clk 0:02:38]} 15. Bxf5 {[%clk 0:02:23]}  Nxf5 {[%clk 0:02:36]} 16. Qb3 {[%clk 0:02:24]}  Ne7 {[%clk 0:02:09]} 17. Rc2 {[%clk 0:02:22]}  Qd6 {[%clk 0:02:06]} 18. Rfc1 {[%clk 0:02:22]}  g5 {[%clk 0:01:51]} 19. Ne1 {[%clk 0:02:15]}  Rfd8 {[%clk 0:01:25]} 20. Nd3 {[%clk 0:02:13]}  Nf5 {[%clk 0:01:20]} 21. a4 {[%clk 0:02:10]}  Bxd4 {[%clk 0:01:17]} 22. exd4 {[%clk 0:02:07]}  Nxd4 {[%clk 0:01:18]} 23. Qb2 {[%clk 0:02:01]}  Nxc2 {[%clk 0:01:18]} 24. Qxc2 {[%clk 0:02:02]}  c5 {[%clk 0:01:19]} 25. Rd1 {[%clk 0:01:50]}  c4 {[%clk 0:01:14]} 26. Ne1 {[%clk 0:01:38]}  d4 {[%clk 0:01:10]} 27. Nf3 {[%clk 0:01:00]}  d3 {[%clk 0:01:03]} 28. Qd2 {[%clk 0:00:59]}  h6 {[%clk 0:01:02]} 29. h3 {[%clk 0:00:59]}  Re8 {[%clk 0:00:58]} 30. Rc1 {[%clk 0:00:57]}  Qb4 {[%clk 0:00:53]} 31. Re1 {[%clk 0:00:52]}  Rxe1+ {[%clk 0:00:47]} 32. Nxe1 {[%clk 0:00:52]}  Re8 {[%clk 0:00:46]} 33. Nf3 {[%clk 0:00:45]}  a6 {[%clk 0:00:32]} 34. g3 {[%clk 0:00:41]}  axb5 {[%clk 0:00:31]} 35. axb5 {[%clk 0:00:42]}  Kg7 {[%clk 0:00:22]} 36. Kg2 {[%clk 0:00:34]}  Kf6 {[%clk 0:00:15]} 37. h4 {[%clk 0:00:33]}  Qc5 {[%clk 0:00:09]} 38. hxg5+ {[%clk 0:00:30]}  hxg5 {[%clk 0:00:10]} 39. g4 {[%clk 0:00:28]}  Kg6 {[%clk 0:00:10]} 40. Nh2 {[%clk 0:00:23]}  f6 {[%clk 0:00:10]} 41. Nf1 {[%clk 0:00:22]}  Qd4 {[%clk 0:00:10]} 42. f3 {[%clk 0:00:21]}  Qe5 {[%clk 0:00:08]} 43. Ng3 {[%clk 0:00:22]}  Qc5 {[%clk 0:00:07]} 44. Nge4 {[%clk 0:00:21]}  Qb4 {[%clk 0:00:08]} 45. Kg3 {[%clk 0:00:19]}  Ra8 {[%clk 0:00:07]} 46. Qh2 {[%clk 0:00:18]}  Ra1 {[%clk 0:00:06]} 47. Qh5+ {[%clk 0:00:19]}  Kg7 {[%clk 0:00:06]} 48. Nxg5 {[%clk 0:00:15]}  Qd6+ {[%clk 0:00:06]} 49. Kg2 {[%clk 0:00:14]}  fxg5 {[%clk 0:00:05]} 50. Qxg5+ {[%clk 0:00:14]}  Kf7 {[%clk 0:00:05]} 51. Qf5+ {[%clk 0:00:14]}  Ke8 {[%clk 0:00:06]} 52. Nd5 {[%clk 0:00:13]}  Ra2+ {[%clk 0:00:05]} 53. Kf1 {[%clk 0:00:12]}  Ra1+ {[%clk 0:00:06]} 54. Kg2 {[%clk 0:00:12]}  Ra2+ {[%clk 0:00:06]} 55. Kf1 {[%clk 0:00:13]}  d2 {[%clk 0:00:06]} 56. Qh5+ {[%clk 0:00:10]}  Kd7 {[%clk 0:00:05]} 57. Qg5 {[%clk 0:00:10]}  d1=Q# {[%clk 0:00:03]} 0-1


[Site "https://www.chess.com"]

[Event "Titled Tuesday Blitz February 22 Early 2022"]
[White "Escudero Donoso, Felipe"]
[Black "Piesik, Piotr"]
[WhiteFideId "3410595"]
[BlackFideId "1136194"]
[WhiteElo "2184"]
[BlackElo "2232"]
[Result "0-1"]
[Round "09"]
[TimeControl "180+1"]
[Date "2022.02.22"]
[WhiteClock "0:00:02"]
[BlackClock "0:01:25"]

1. Nf3 {[%clk 0:03:00]}  g6 {[%clk 0:02:59]} 2. c4 {[%clk 0:02:57]}  Bg7 {[%clk 0:02:59]} 3. g3 {[%clk 0:02:57]}  Nc6 {[%clk 0:02:59]} 4. Bg2 {[%clk 0:02:55]}  d6 {[%clk 0:02:59]} 5. Nc3 {[%clk 0:02:53]}  e5 {[%clk 0:03:00]} 6. O-O {[%clk 0:02:52]}  f5 {[%clk 0:03:00]} 7. d3 {[%clk 0:02:51]}  Nf6 {[%clk 0:03:00]} 8. Rb1 {[%clk 0:02:51]}  a5 {[%clk 0:03:00]} 9. a3 {[%clk 0:02:51]}  O-O {[%clk 0:03:00]} 10. b4 {[%clk 0:02:50]}  axb4 {[%clk 0:03:01]} 11. axb4 {[%clk 0:02:51]}  h6 {[%clk 0:03:01]} 12. b5 {[%clk 0:02:50]}  Ne7 {[%clk 0:03:02]} 13. Nd2 {[%clk 0:02:47]}  g5 {[%clk 0:03:00]} 14. Bb2 {[%clk 0:02:35]}  Ng6 {[%clk 0:02:58]} 15. Ra1 {[%clk 0:02:34]}  Rb8 {[%clk 0:02:56]} 16. Nd5 {[%clk 0:02:24]}  Be6 {[%clk 0:02:49]} 17. Nxf6+ {[%clk 0:02:20]}  Qxf6 {[%clk 0:02:50]} 18. f4 {[%clk 0:02:06]}  gxf4 {[%clk 0:02:48]} 19. gxf4 {[%clk 0:02:06]}  Nh4 {[%clk 0:02:41]} 20. Qe1 {[%clk 0:01:52]}  Nxg2 {[%clk 0:02:39]} 21. Kxg2 {[%clk 0:01:50]}  Kh7 {[%clk 0:02:39]} 22. Kh1 {[%clk 0:01:49]}  Rg8 {[%clk 0:02:37]} 23. Nf3 {[%clk 0:01:41]}  Qg6 {[%clk 0:02:25]} 24. Rg1 {[%clk 0:01:36]}  Qh5 {[%clk 0:02:24]} 25. fxe5 {[%clk 0:01:36]}  d5 {[%clk 0:02:16]} 26. Qh4 {[%clk 0:01:26]}  Qxh4 {[%clk 0:02:12]} 27. Nxh4 {[%clk 0:01:25]}  dxc4 {[%clk 0:02:12]} 28. d4 {[%clk 0:01:11]}  Bd5+ {[%clk 0:02:00]} 29. Nf3 {[%clk 0:01:10]}  Bf8 {[%clk 0:01:47]} 30. Rxg8 {[%clk 0:01:09]}  Kxg8 {[%clk 0:01:48]} 31. Kg1 {[%clk 0:01:03]}  Be7 {[%clk 0:01:45]} 32. Kf2 {[%clk 0:01:01]}  Kf7 {[%clk 0:01:45]} 33. Ke3 {[%clk 0:00:51]}  Rg8 {[%clk 0:01:44]} 34. Rg1 {[%clk 0:00:48]}  Rxg1 {[%clk 0:01:40]} 35. Nxg1 {[%clk 0:00:48]}  Bg5+ {[%clk 0:01:40]} 36. Kf2 {[%clk 0:00:46]}  Bd2 {[%clk 0:01:39]} 37. Nf3 {[%clk 0:00:23]}  Bxf3 {[%clk 0:01:35]} 38. exf3 {[%clk 0:00:19]}  c3 {[%clk 0:01:35]} 39. Ba3 {[%clk 0:00:19]}  c2 {[%clk 0:01:35]} 40. Ke2 {[%clk 0:00:12]}  c1=Q {[%clk 0:01:35]} 41. Bxc1 {[%clk 0:00:13]}  Bxc1 {[%clk 0:01:36]} 42. Kd3 {[%clk 0:00:14]}  Ke6 {[%clk 0:01:34]} 43. Kc4 {[%clk 0:00:14]}  b6 {[%clk 0:01:32]} 44. h3 {[%clk 0:00:15]}  Bb2 {[%clk 0:01:27]} 45. f4 {[%clk 0:00:13]}  Bc1 {[%clk 0:01:26]} 46. d5+ {[%clk 0:00:13]}  Kd7 {[%clk 0:01:26]} 47. e6+ {[%clk 0:00:05]}  Kd6 {[%clk 0:01:26]} 48. Kd3 {[%clk 0:00:02]}  Bxf4 {[%clk 0:01:26]} 49. Kd4 {[%clk 0:00:02]}  Bg5 {[%clk 0:01:25]} 0-1


[Site "https://www.chess.com"]

[Event "Titled Tuesday Blitz February 22 Early 2022"]
[White "Fathy, Elameir"]
[Black "Sahin, Handenur"]
[WhiteFideId "10600396"]
[BlackFideId "6334865"]
[WhiteElo "2311"]
[BlackElo "2132"]
[Result "0-1"]
[Round "09"]
[TimeControl "180+1"]
[Date "2022.02.22"]
[WhiteClock "0:00:01"]
[BlackClock "0:00:21"]

1. d4 {[%clk 0:03:00]}  d5 {[%clk 0:02:55]} 2. Nf3 {[%clk 0:03:00]}  Nf6 {[%clk 0:02:54]} 3. c4 {[%clk 0:03:00]}  c6 {[%clk 0:02:54]} 4. g3 {[%clk 0:03:00]}  Bg4 {[%clk 0:02:52]} 5. Ne5 {[%clk 0:03:00]}  Bf5 {[%clk 0:02:50]} 6. Qb3 {[%clk 0:02:52]}  Qb6 {[%clk 0:02:42]} 7. c5 {[%clk 0:02:52]}  Qc7 {[%clk 0:02:41]} 8. Bf4 {[%clk 0:02:50]}  Qc8 {[%clk 0:02:41]} 9. Bg2 {[%clk 0:02:46]}  Nbd7 {[%clk 0:02:42]} 10. Nd2 {[%clk 0:02:25]}  Nxe5 {[%clk 0:02:40]} 11. Bxe5 {[%clk 0:02:19]}  Nd7 {[%clk 0:02:39]} 12. O-O-O {[%clk 0:02:03]}  Nxe5 {[%clk 0:02:35]} 13. dxe5 {[%clk 0:02:03]}  e6 {[%clk 0:02:34]} 14. e4 {[%clk 0:02:03]}  Bg6 {[%clk 0:02:32]} 15. Qc3 {[%clk 0:01:59]}  b6 {[%clk 0:02:20]} 16. exd5 {[%clk 0:01:48]}  cxd5 {[%clk 0:02:19]} 17. c6 {[%clk 0:01:35]}  Bc5 {[%clk 0:02:02]} 18. b4 {[%clk 0:01:30]}  Be7 {[%clk 0:01:57]} 19. Nb3 {[%clk 0:01:27]}  a5 {[%clk 0:01:48]} 20. a3 {[%clk 0:01:04]}  axb4 {[%clk 0:01:39]} 21. axb4 {[%clk 0:01:04]}  b5 {[%clk 0:01:33]} 22. Kb2 {[%clk 0:00:57]}  Ra4 {[%clk 0:01:27]} 23. Rd4 {[%clk 0:00:45]}  Qa6 {[%clk 0:01:22]} 24. Ra1 {[%clk 0:00:31]}  O-O {[%clk 0:01:18]} 25. Rxa4 {[%clk 0:00:17]}  bxa4 {[%clk 0:01:14]} 26. Na5 {[%clk 0:00:15]}  Rc8 {[%clk 0:00:46]} 27. Bf3 {[%clk 0:00:14]}  Qf1 {[%clk 0:00:36]} 28. Rd2 {[%clk 0:00:02]}  Qb1+ {[%clk 0:00:34]} 29. Ka3 {[%clk 0:00:02]}  h5 {[%clk 0:00:30]} 30. Qb2 {[%clk 0:00:03]}  Qf5 {[%clk 0:00:28]} 31. Be2 {[%clk 0:00:02]}  Qxf2 {[%clk 0:00:25]} 32. Bd3 {[%clk 0:00:02]}  Qe3 {[%clk 0:00:24]} 33. Ka2 {[%clk 0:00:01]}  Bxd3 {[%clk 0:00:23]} 34. Qc3 {[%clk 0:00:01]}  Bc4+ {[%clk 0:00:21]} 35. Qxc4 {[%clk 0:00:01]} 0-1


[Site "https://www.chess.com"]

[Event "Titled Tuesday Blitz February 22 Early 2022"]
[White "Fiorito, Fabian"]
[Black "Putri, Regita Desyari"]
[WhiteFideId "100200"]
[BlackFideId "7109083"]
[WhiteElo "2395"]
[BlackElo "1930"]
[Result "1-0"]
[Round "09"]
[TimeControl "180+1"]
[Date "2022.02.22"]
[WhiteClock "0:01:45"]
[BlackClock "0:00:29"]

1. d4 {[%clk 0:03:00]}  Nf6 {[%clk 0:02:59]} 2. Nc3 {[%clk 0:03:00]}  d5 {[%clk 0:02:58]} 3. Bf4 {[%clk 0:03:00]}  a6 {[%clk 0:02:55]} 4. e3 {[%clk 0:03:00]}  Bf5 {[%clk 0:02:54]} 5. Bd3 {[%clk 0:03:00]}  e6 {[%clk 0:02:52]} 6. h4 {[%clk 0:02:57]}  Bd6 {[%clk 0:02:45]} 7. Nge2 {[%clk 0:02:55]}  Qe7 {[%clk 0:02:42]} 8. Bxf5 {[%clk 0:02:54]}  exf5 {[%clk 0:02:41]} 9. Qd3 {[%clk 0:02:54]}  g6 {[%clk 0:02:36]} 10. Bg5 {[%clk 0:02:47]}  c6 {[%clk 0:02:35]} 11. h5 {[%clk 0:02:48]}  Nbd7 {[%clk 0:02:25]} 12. O-O-O {[%clk 0:02:44]}  O-O-O {[%clk 0:02:23]} 13. Kb1 {[%clk 0:02:41]}  h6 {[%clk 0:02:19]} 14. Bf4 {[%clk 0:02:30]}  Bxf4 {[%clk 0:02:04]} 15. Nxf4 {[%clk 0:02:30]}  g5 {[%clk 0:02:04]} 16. Nfe2 {[%clk 0:02:25]}  Ne4 {[%clk 0:02:02]} 17. Rhf1 {[%clk 0:02:23]}  Qe6 {[%clk 0:01:59]} 18. f3 {[%clk 0:02:24]}  Nef6 {[%clk 0:01:59]} 19. Ng3 {[%clk 0:02:23]}  Kb8 {[%clk 0:01:44]} 20. Nxf5 {[%clk 0:02:15]}  Nxh5 {[%clk 0:01:40]} 21. g4 {[%clk 0:02:15]}  Nhf6 {[%clk 0:01:37]} 22. Rh1 {[%clk 0:02:12]}  h5 {[%clk 0:01:36]} 23. Ng7 {[%clk 0:02:12]}  Qe7 {[%clk 0:01:27]} 24. gxh5 {[%clk 0:02:12]}  Nb6 {[%clk 0:01:17]} 25. h6 {[%clk 0:02:10]}  Nc4 {[%clk 0:01:17]} 26. Nf5 {[%clk 0:02:10]}  Qe6 {[%clk 0:01:16]} 27. e4 {[%clk 0:02:03]}  dxe4 {[%clk 0:01:09]} 28. fxe4 {[%clk 0:02:03]}  Nb6 {[%clk 0:00:55]} 29. Rhf1 {[%clk 0:01:59]}  Ng4 {[%clk 0:00:52]} 30. Qg3+ {[%clk 0:01:58]}  Ka7 {[%clk 0:00:48]} 31. Qxg4 {[%clk 0:01:58]}  Nc4 {[%clk 0:00:49]} 32. Qe2 {[%clk 0:01:58]}  b5 {[%clk 0:00:44]} 33. d5 {[%clk 0:01:56]}  cxd5 {[%clk 0:00:44]} 34. Qf2+ {[%clk 0:01:57]}  Ka8 {[%clk 0:00:43]} 35. exd5 {[%clk 0:01:57]}  Qc8 {[%clk 0:00:39]} 36. d6 {[%clk 0:01:55]}  Qc6 {[%clk 0:00:38]} 37. Ne7 {[%clk 0:01:45]}  Qd7 {[%clk 0:00:29]} 38. Qf3+ {[%clk 0:01:45]}  Ka7 {[%clk 0:00:29]} 39. Nc6+ {[%clk 0:01:45]} 1-0


[Site "https://www.chess.com"]

[Event "Titled Tuesday Blitz February 22 Early 2022"]
[White "Garagulya, Konstantin"]
[Black "Unat, Can Haktan"]
[WhiteFideId "4128931"]
[BlackFideId "6398073"]
[WhiteElo "2329"]
[BlackElo "1980"]
[Result "1-0"]
[Round "09"]
[TimeControl "180+1"]
[Date "2022.02.22"]
[WhiteClock "0:00:31"]
[BlackClock "0:01:19"]

1. d4 {[%clk 0:02:57]}  Nf6 {[%clk 0:02:56]} 2. Nf3 {[%clk 0:02:57]}  e6 {[%clk 0:02:57]} 3. Bg5 {[%clk 0:02:57]}  d5 {[%clk 0:02:54]} 4. Nbd2 {[%clk 0:02:57]}  h6 {[%clk 0:02:53]} 5. Bh4 {[%clk 0:02:57]}  g5 {[%clk 0:02:53]} 6. Bg3 {[%clk 0:02:56]}  b6 {[%clk 0:02:54]} 7. e3 {[%clk 0:02:56]}  Bb7 {[%clk 0:02:54]} 8. h4 {[%clk 0:02:50]}  g4 {[%clk 0:02:54]} 9. Ne5 {[%clk 0:02:51]}  h5 {[%clk 0:02:54]} 10. f3 {[%clk 0:02:51]}  Nbd7 {[%clk 0:02:54]} 11. fxg4 {[%clk 0:02:49]}  Nxe5 {[%clk 0:02:51]} 12. Bxe5 {[%clk 0:02:49]}  Bd6 {[%clk 0:02:47]} 13. gxh5 {[%clk 0:02:28]}  Rxh5 {[%clk 0:02:37]} 14. Nf3 {[%clk 0:01:40]}  Ng4 {[%clk 0:02:27]} 15. Ng5 {[%clk 0:01:17]}  f5 {[%clk 0:02:15]} 16. Nxe6 {[%clk 0:01:05]}  Qe7 {[%clk 0:01:42]} 17. Ng7+ {[%clk 0:01:03]}  Kd7 {[%clk 0:01:42]} 18. Nxh5 {[%clk 0:01:03]}  Bxe5 {[%clk 0:01:43]} 19. dxe5 {[%clk 0:01:01]}  Qxe5 {[%clk 0:01:44]} 20. Qd4 {[%clk 0:00:55]}  Qxd4 {[%clk 0:01:28]} 21. exd4 {[%clk 0:00:54]}  Re8+ {[%clk 0:01:28]} 22. Kd2 {[%clk 0:00:54]}  Rh8 {[%clk 0:01:26]} 23. Nf4 {[%clk 0:00:47]}  Nf2 {[%clk 0:01:25]} 24. Rh2 {[%clk 0:00:45]}  Ne4+ {[%clk 0:01:26]} 25. Ke3 {[%clk 0:00:38]}  c5 {[%clk 0:01:26]} 26. Bd3 {[%clk 0:00:35]}  Ng3 {[%clk 0:01:24]} 27. c3 {[%clk 0:00:33]}  c4 {[%clk 0:01:22]} 28. Bc2 {[%clk 0:00:31]}  Ke7 {[%clk 0:01:18]} 29. Kf3 {[%clk 0:00:31]}  Kf6 {[%clk 0:01:19]} 30. Kxg3 {[%clk 0:00:31]} 1-0


[Site "https://www.chess.com"]

[Event "Titled Tuesday Blitz February 22 Early 2022"]
[White "Gatterer, Florian"]
[Black "Fakhretdinova, Margarita"]
[WhiteFideId "811688"]
[BlackFideId "24103667"]
[WhiteElo "2218"]
[BlackElo "2208"]
[Result "1-0"]
[Round "09"]
[TimeControl "180+1"]
[Date "2022.02.22"]
[WhiteClock "0:00:36"]
[BlackClock "0:00:03"]

1. b3 {[%clk 0:03:00]}  Nf6 {[%clk 0:02:54]} 2. Bb2 {[%clk 0:02:59]}  e6 {[%clk 0:02:54]} 3. Nf3 {[%clk 0:02:55]}  b6 {[%clk 0:02:54]} 4. g3 {[%clk 0:02:54]}  Bb7 {[%clk 0:02:55]} 5. Bg2 {[%clk 0:02:53]}  Be7 {[%clk 0:02:55]} 6. O-O {[%clk 0:02:52]}  d6 {[%clk 0:02:55]} 7. c4 {[%clk 0:02:52]}  Nbd7 {[%clk 0:02:56]} 8. d4 {[%clk 0:02:52]}  O-O {[%clk 0:02:56]} 9. Nc3 {[%clk 0:02:51]}  a6 {[%clk 0:02:52]} 10. Rc1 {[%clk 0:02:50]}  Rc8 {[%clk 0:02:46]} 11. Re1 {[%clk 0:02:47]}  Ne4 {[%clk 0:02:45]} 12. Qc2 {[%clk 0:02:26]}  Ndf6 {[%clk 0:02:44]} 13. Nd2 {[%clk 0:02:23]}  d5 {[%clk 0:02:26]} 14. Ndxe4 {[%clk 0:02:22]}  dxe4 {[%clk 0:02:16]} 15. Nxe4 {[%clk 0:02:22]}  Nxe4 {[%clk 0:02:10]} 16. Bxe4 {[%clk 0:02:23]}  Bxe4 {[%clk 0:02:11]} 17. Qxe4 {[%clk 0:02:22]}  Bf6 {[%clk 0:02:11]} 18. Bc3 {[%clk 0:02:17]}  Re8 {[%clk 0:02:05]} 19. Red1 {[%clk 0:02:16]}  Qe7 {[%clk 0:02:02]} 20. Qc2 {[%clk 0:02:14]}  c5 {[%clk 0:01:58]} 21. dxc5 {[%clk 0:02:05]}  Bxc3 {[%clk 0:01:58]} 22. Qxc3 {[%clk 0:02:03]}  Rxc5 {[%clk 0:01:52]} 23. Qd2 {[%clk 0:01:55]}  Rec8 {[%clk 0:01:47]} 24. a4 {[%clk 0:01:51]}  Qc7 {[%clk 0:01:44]} 25. Ra1 {[%clk 0:01:38]}  h6 {[%clk 0:01:33]} 26. h4 {[%clk 0:01:36]}  b5 {[%clk 0:01:25]} 27. cxb5 {[%clk 0:01:35]}  axb5 {[%clk 0:01:26]} 28. a5 {[%clk 0:01:35]}  Rc2 {[%clk 0:01:22]} 29. Qe3 {[%clk 0:01:25]}  Rc3 {[%clk 0:01:15]} 30. Qd4 {[%clk 0:01:00]}  Ra8 {[%clk 0:00:13]} 31. a6 {[%clk 0:00:55]}  Rc6 {[%clk 0:00:02]} 32. a7 {[%clk 0:00:53]}  Rc5 {[%clk 0:00:03]} 33. b4 {[%clk 0:00:36]}  Rc4 {[%clk 0:00:03]} 34. Qd7 {[%clk 0:00:36]} 1-0


[Site "https://www.chess.com"]